{"text_format":"2","workbook":"xlsx","n_sheets":3,"sheets":["Főösszesítő","Munkanem össz.","Költségvetés"],"not_rendered":{"charts":0,"images":0,"macros":0,"external_links":0,"defined_names":2,"comments":0,"pivot_tables":0},"unopened":[],"bounds":{"document_bytes":16777216,"sheet_cells":100000,"run_cost":"one","rows_first":2000,"rows_last":500,"rows_between":2000,"halvings":0,"cell_chars":16384,"cell_head_chars":4096},"cells_cut":0,"cells_raw":0,"read":"whole","date_system":"1900"}

{"sheet":"Főösszesítő","index":0,"n_rows":30,"n_cols":4,"rows_kept":30,"cut":false,"hidden":false,"merged":[[0,1,0,2],[23,2,23,3],[16,0,16,3],[21,2,21,3],[22,2,22,3],[2,0,2,1],[3,0,3,1],[6,0,6,1],[11,0,11,1],[7,0,7,1]]}
[]
["Építtető:",null,"                                       "]
["Békés Város Önkormányzata",null,"                                       "]
["5630 Békés, Petőfi Sándor utca 2. sz.",null,"                                       "]
["                                       ",null,"                                       "]
["A létesítmény megnevezése:             ",null,"                                       "]
["TOP-1.2.1-15 Társadalmi és környezeti ",null,"                                       "]
["szempontból fenntartható turizmusfejlesztés"]
[]
[]
["A létesítmény helye:                                                          "]
["Békés, Dánfok építőmesteri munkák",null,"                                       "]
["                                                                              "]
[]
["                                                                              "]
[]
["Költségvetés főösszesítő"]
[]
[]
["Megnevezés",null,"Anyagköltség","Díjköltség"]
["1. Építmény közvetlen költségei",null,{"$f":"'Munkanem össz.'!B25","v":0},{"$f":"'Munkanem össz.'!C25","v":0}]
["2.1 ÁFA vetítési alap",null,{"$f":"SUM(C21:D21)","v":0}]
["2.2 ÁFA",0.27,{"$f":"C22*0.27","v":0}]
["3.  A munka ára",null,{"$f":"SUM(C22:D23)","v":0}]
[]
[]
[]
[]
[]
[null,null,"Aláírás"]

{"sheet":"Munkanem össz.","index":1,"n_rows":25,"n_cols":4,"rows_kept":25,"cut":false,"hidden":false,"merged":[]}
["Munkanem megnevezése","Anyag összege","Díj összege","Anyag+Díj ö."]
["Portaépület felújítása",{"$f":"Költségvetés!H105","v":0},{"$f":"Költségvetés!I105","v":0},{"$f":"B2+C2","v":0}]
["Hídmagasítás",{"$f":"Költségvetés!H129","v":0},{"$f":"Költségvetés!I129","v":0},{"$f":"B3+C3","v":0}]
["Strandröplabda pálya  felújítása",{"$f":"Költségvetés!H150","v":0},{"$f":"Költségvetés!I150","v":0},0]
["Kerítés  építése",{"$f":"Költségvetés!H155","v":0},{"$f":"Költségvetés!I155","v":0},0]
["Sövény telepítése",{"$f":"Költségvetés!H164","v":0},{"$f":"Költségvetés!I164","v":0},0]
["Új be-és kiléptető rendszer",{"$f":"Költségvetés!H171","v":0},{"$f":"Költségvetés!I171","v":0},0]
["Játszótér",{"$f":"Költségvetés!H191","v":0},{"$f":"Költségvetés!I191","v":0},0]
["Partvonal homokfeltöltése",{"$f":"Költségvetés!H196","v":0},{"$f":"Költségvetés!I196","v":0},0]
["Strandfoci pálya kialakítása",{"$f":"Költségvetés!H217","v":0},{"$f":"Költségvetés!I217","v":0},0]
["Csúszda  telepítése",{"$f":"Költségvetés!H232","v":0},{"$f":"Költségvetés!I232","v":0},0]
["Mobil színpad",{"$f":"Költségvetés!H237","v":0},{"$f":"Költségvetés!I237","v":0},0]
["Rendezvénysátor",{"$f":"Költségvetés!H242","v":0},{"$f":"Költségvetés!I242","v":0},0]
["Öltöző-zuhanyozó",{"$f":"Költségvetés!H300","v":0},{"$f":"Költségvetés!I300","v":0},0]
["Kerékpártároló",{"$f":"Költségvetés!H319","v":0},{"$f":"Költségvetés!I319","v":0},0]
["Csónaktároló megállóhely É.11.1",{"$f":"Költségvetés!H350","v":0},{"$f":"Költségvetés!I350","v":0},0]
["Felső-körgáti zsilip megállóhely É.11.2",{"$f":"Költségvetés!H368","v":0},{"$f":"Költségvetés!I368","v":0},0]
["A piaci épületek közötti átjáró magasságánál készülő megállóhely É.11.3.",{"$f":"Költségvetés!H386","v":0},{"$f":"Költségvetés!I386","v":0},0]
["Bagoly vendéglőnél készülő megállóhely É.11.4.",{"$f":"Költségvetés!H404","v":0},{"$f":"Költségvetés!I404","v":0},0]
["Alsó-körgáti zsilip megállóhely É.11.5.",{"$f":"Költségvetés!H423","v":0},{"$f":"Költségvetés!I423","v":0},0]
["Útépítési munkák ( parkoló építés, felújítás )",{"$f":"Költségvetés!H494","v":0},{"$f":"Költségvetés!I494","v":0},0]
["Járda építése",{"$f":"Költségvetés!H499","v":0},{"$f":"Költségvetés!I499","v":0},0]
["Ivókút telepítése",{"$f":"Költségvetés!H504","v":0},{"$f":"Költségvetés!I504","v":0},0]
[]
["Nettó összesen:",{"$f":"SUM(B2:B23)","v":0},{"$f":"SUM(C2:C23)","v":0},{"$f":"SUM(D2:D23)","v":0}]

{"sheet":"Költségvetés","index":2,"n_rows":504,"n_cols":9,"rows_kept":504,"cut":false,"hidden":false,"merged":[[463,9,463,13]]}
["Ssz.","Tételszám","Tétel szövege","Menny.","Egység","Anyag egységár","Díj egységre","Anyag összesen","Díj összesen"]
[null,null,"PORTAÉPÜLET"]
[]
[null,null,"Kőműves munka"]
[]
["1.","33-000-031.1.1","Nyílásbontás,\négetett-agyag kerámia\nteherhordó, tömör téglafalban",0.04,"m3",null,null,{"$f":"ROUND(D6*F6, 0)","v":0},{"$f":"ROUND(D6*G6, 0)","v":0}]
[]
["2.","33-000-021.1.1.1.1.1","Válaszfal bontása,\négetett agyag-kerámia termékekből,\nerősítő pillérrel vagy erősítő pillér nélkül falazva,\nkisméretű, mészhomok, magasított vagy nagyméretű téglából,\n15 cm vastagságig,\nfalazó, cementes mészhabarcsból falazva",16,"m2",null,null,{"$f":"ROUND(D8*F8,0)","v":0},{"$f":"ROUND(D8*G8,0)","v":0}]
[]
["3."," 33-011-001.1.2.1.2.1.2-2132106","Válaszfal építése,\négetett agyag-kerámia termékekből,\nnútféderes elemekből,\n100 mm falvastagságban,\n330x238x100 mm-es vagy 500x238x100 mm-es méretű\nválaszfallapból,\nfalazó, meszes cementhabarcsba falazva\nPOROTHERM 10 N+F válaszfallap, 500x238x100 mm,M 2,5 (Hf30-cm) falazó, meszes cementhabarcs",15.7,"m2",null,null,{"$f":"ROUND(D10*F10,0)","v":0},{"$f":"ROUND(D10*G10,0)","v":0}]
[]
["4.","36-001-001.1.1-0550040","Sima oldalfalvakolat készítése kézi felhordással,\nbelső, vakoló cementes mészhabarccsal,\ntéglafelületen, 1,5 cm vastagságban\nHvb8-mc, belső, vakoló cementes mészhabarccsal ésHs60-cm, felületképző (simító), meszescementhabarccsal",31.4,"m2",null,null,{"$f":"ROUND(D12*F12, 0)","v":0},{"$f":"ROUND(D12*G12, 0)","v":0}]
[]
["5.","36-090-001.3.1.1-0550040","Vakolatjavítás\nmennyezeten,\nsík vasbeton téglabetétes, téglatálcás födémen, íves boltozaton vagy építőelemen a meglazult, sérült vakolat leverésével,\nhiánypótlás 5% alatt\nHvb8-mc, beltéri, vakoló cementes mészhabarcs mészpéppel\n",5,"m2",null,null,{"$f":"ROUND(D14*F14,0)","v":0},{"$f":"ROUND(D14*G14,0)","v":0}]
[]
["6.","36-090-002.1.2","Vakolás és rabicolás\nJavítási és pótlási munkák\nVakolatok pótlása, keskenyvakolatok pótlása\noldalfalon,\n11-20 cm szélesség között",10.8,"m",null,null,{"$f":"ROUND(D16*F16,0)","v":0},{"$f":"ROUND(D16*G16,0)","v":0}]
[]
["7.","36-090-002.1.3","Vakolatok pótlása, keskenyvakolatok pótlása\noldalfalon,\n21-40 cm szélesség között\n",4.5,"m",null,null,{"$f":"ROUND(D18*F18, 0)","v":0},{"$f":"ROUND(D18*G18, 0)","v":0}]
[null,null,"Kőműves munka összesen:",{"$nulls":4},{"$f":"SUM(H6:H18)","v":0},{"$f":"SUM(I6:I18)","v":0}]
[]
[]
[null,null,"Burkolatok"]
[]
["1.","42-000-002.1","Lapburkolatok bontása,\npadlóburkolat bármely méretű kőagyag, mozaik vagytört mozaik  lapból",28.1,"m2",null,null,{"$f":"ROUND(D24*F24, 0)","v":0},{"$f":"ROUND(D24*G24, 0)","v":0}]
[]
["2.","42-000-002.3","Lapburkolatok bontása,\nlábazatburkolat 0,50 m magasságig, egyenes egysoros vagy lépcsős kivitelben,10x10 - 20x20 cm-es lapméretig",14.36,"m",null,null,{"$f":"ROUND(D26*F26, 0)","v":0},{"$f":"ROUND(D26*G26, 0)","v":0}]
[]
["3.","42-011-002.1.1.4.1-0313032","Padlóburkolat hordozószerkezetének felületelőkészítése\nbeltérben,\nbeton alapfelületen\nönterülő felületkiegyenlítés készítése\n1 cm átlagos rétegvastagságban\nMAPEI Ultraplan Renovation szálerősítéses, önterülő aljzatkiegyenlítő simítóhabarcs, 3-30 mm vastag egyrétegű alkalmazáshoz\n",28.1,"m2     ",null,null,{"$f":"ROUND(D28*F28, 0)","v":0},{"$f":"ROUND(D28*G28, 0)","v":0}]
[{"$nulls":7},{"$f":"ROUND(D29*F29, 0)","v":0},{"$f":"ROUND(D29*G29, 0)","v":0}]
["4.","42-022-001.1.1.2.1.1-0214203","Padlóburkolat készítése,\nbeltérben,tégla, beton, vakolt alapfelületen,\ngres, kőporcelán lappal,kötésben vagy hálósan, 3-5 mm vtg. ragasztóba rakva, 1-10 mm fugaszélességgel.\nCsúszásgátlóság: R 9                                    Kopásállóság: PEI V",28.1,"m2",null,null,{"$f":"ROUND(D30*F30, 0)","v":0},{"$f":"ROUND(D30*G30, 0)","v":0}]
[]
["5.","M/42-012-001.1.1.2.1.1-0313116","Lábazatburkolat készítése, kőporcelán lapokkal, 10 cm magas, egyenes  egysoros kivitelben, beltérben.",29.8,"m",null,null,{"$f":"ROUND(D32*F32, 0)","v":0},{"$f":"ROUND(D32*G32, 0)","v":0}]
[null,null,"Burkolatok összesen:",{"$nulls":4},{"$f":"SUM(H24:H32)","v":0},{"$f":"SUM(I24:I32)","v":0}]
[]
[null,null,"Bádogos munka"]
[]
["1.","43-000-008","Falfedések egy vagy két vízorros, hajlatbádog bontása,100 cm kiterített szélességig",31.9,"m",null,null,{"$f":"ROUND(D37*F37, 0)","v":0},{"$f":"ROUND(D37*G37, 0)","v":0}]
[]
["2.","M/43-003-010.1.3.1-0149647","Kétvízorros falfedés,egyenesvonalú kivitelben,\nhorganyzott acéllemezből,40  cm kiterített szélességü.",31.9,"m",null,null,{"$f":"ROUND(D39*F39, 0)","v":0},{"$f":"ROUND(D39*G39, 0)","v":0}]
[null,null,"Bádogos munka összesen:",{"$nulls":4},{"$f":"SUM(H37:H39)","v":0},{"$f":"SUM(I37:I39)","v":0}]
[]
[null,null,"Asztalos munka"]
[]
["1."," 44-000-001.1","Fa vagy műanyag nyílászáró szerkezetek bontása, ajtó, ablak vagy kapu,\n2,00 m2-ig",1.89,"m2",null,null,{"$f":"ROUND(D44*F44, 0)","v":0},{"$f":"ROUND(D44*G44, 0)","v":0}]
[]
["2.","44-000-001.2","Fa vagy műanyag nyílászáró szerkezetek bontása, ajtó, ablak vagy kapu,\n2,01-4,00 m2 között\n",2.25,"m2",null,null,{"$f":"ROUND(D46*F46, 0)","v":0},{"$f":"ROUND(D46*G46, 0)","v":0}]
[]
["3.","44-011-001.1.1-0167401","Új bejárati műanyag ajtó felnyíló-, félig üvegezett szárnnyal,süllyesztett küszöbbel, biztonsági hengerzárral, külső-belső akadálymentesen használható fém \"U\" ajtónyitó fogóval."]
[null,null,"1,1 x 2,25 m méretű",1,"db",null,null,{"$f":"ROUND(D49*F49, 0)","v":0},{"$f":"ROUND(D49*G49, 0)","v":0}]
[]
["4.","44-012-001.1.2","Új külső műanyag ablak,felnyíló szárnyakkal, horganyzott acéllemez külső párkánnyal,típus műanyag belső könyöklővel, 3 rétegű nemesgáz töltetű üvegezés."]
[null,null,"1,25 × 1,40 m méretű",1,"db",null,null,{"$f":"D52*F52","v":0},{"$f":"D52*G52","v":0}]
[null,null,"Asztalos munka összesen:",{"$nulls":4},{"$f":"SUM(H44:H52)","v":0},{"$f":"SUM(I44:I52)","v":0}]
[]
[null,null,"Szobafestő munka"]
[]
[1,"47-000-1.21.4.2.1-0418383","Belső festéseknél felület előkészítése, részmunkák; glettelés,diszperziós kötőanyagú glettel .",119,"m2     ",null,null,{"$f":"ROUND(D57*F57, 0)","v":0},{"$f":"ROUND(D57*G57, 0)","v":0}]
[]
["2.","47-011-15.1.1.1-0151201","Diszperziós falfestés készítése belső vakolatfelületeken.\n                                   ",119,"m2     ",null,null,{"$f":"ROUND(D59*F59, 0)","v":0},{"$f":"ROUND(D59*G59, 0)","v":0}]
[null,null,"Szobafestő munka összesen:",{"$nulls":4},{"$f":"SUM(H57:H59)","v":0},{"$f":"SUM(I57:I59)","v":0}]
[]
[null,null,"Szigetelő munka"]
[]
["1.","48-000-020","Pára- vagy salakszellőzők bontása,egy-vagy kéttagú pára- vagy salakszellőzők\n",8,"db",null,null,{"$f":"ROUND(D64*F64, 0)","v":0},{"$f":"ROUND(D64*G64, 0)","v":0}]
[]
["2.","48-000-006.1","Meglévő és megmaradó bitumenes lemez csapadékvíz elleni szigetelés,\nperforálása 25x25 cm-es raszterben,kettő vagy több réteg lemez esetén\n",128.5,"m2",null,null,null,{"$f":"ROUND(D66*G66, 0)","v":0}]
[{"$nulls":7},{"$f":"ROUND(D67*F67, 0)","v":0},{"$f":"ROUND(D67*G67, 0)","v":0}]
[]
["3.","48-005-001.83.1-0413483","Páraszellőző elhelyezése,\ntermoplasztikus műanyag páraszellőző beépítésebitumenes lemez szigetelésű tetőben,csapadékvíz elleni szigeteléshez vízhatlanul csatlakoztatva\nEUROSZIG T-Plusz páraszellőző d75 h 270 bitumenes lemezhez\n",8,"db",null,null,{"$f":"ROUND(D69*F69, 0)","v":0},{"$f":"ROUND(D69*G69, 0)","v":0}]
[]
["4.","48-005-001.1.1.1.2-0415319","Csapadékvíz elleni szigetelés;\nBitumenes lemez szigetelés aljzatának kellősítése,egy rétegben,vízszintes felületen,vízbázisú bitumenemulzióval (enyhén nedves felületen)\nISO-PRIMER oldószermentes bitumenes alapozó, beton felületen (anyagfelhasználás: 0,5-0,7 kg/m2)\n",153,"m2",null,null,{"$f":"ROUND(D71*F71, 0)","v":0},{"$f":"ROUND(D71*G71, 0)","v":0}]
[]
["5.","48-005-001.3.3.2.1-0415014","Egyenes rétegrendű csapadékvíz elleni szigetelés\npáratechnikai rétege,\nvízszintes felületen, egy rétegben,minimum 2,0 mm vastag\nfilces felületű, oxidált bitumenes lemezzel,az aljzathoz bitumenes hidegragasztóval vagy PUR bázisúragasztóval rögzítve\nISO-LINE FILC 3,5 üvegfátyol hordozórétegű filcalátétes lemez\n",131,"m2",null,null,{"$f":"ROUND(D73*F73, 0)","v":0},{"$f":"ROUND(D73*G73, 0)","v":0}]
[]
["6.","48-005-001.7.1.1.2.2-0099011","Felső réteg szigetelés készítése,egy réteg bitumenes lemezzel,vízszintes felületen,\nhegesztéssel, fél lemezszélesség eltolással fektetve ISO-LINE PALA C 5,5 PLAST zárólemez.\n",153,"m2",null,null,{"$f":"ROUND(D75*F75, 0)","v":0},{"$f":"ROUND(D75*G75, 0)","v":0}]
[null,null,"Szigetelő munka összesen:",{"$nulls":4},{"$f":"SUM(H64:H75)","v":0},{"$f":"SUM(I64:I75)","v":0}]
[]
[null,null,"Rámpa készítése",{"$nulls":4},{"$f":"ROUND(D78*F78, 0)","v":0},{"$f":"ROUND(D78*G78, 0)","v":0}]
[]
["1."," 21-002-001.1","Humuszos termőréteg, termőföld leszedése,terítése gépi erővel, 18%-os terephajlásig,bármilyen talajban, szállítással,\n50,0 m-ig",0.5,"m3",null,null,{"$f":"ROUND(D80*F80,0)","v":0},{"$f":"ROUND(D80*G80,0)","v":0}]
[]
["2.","21-011-7.2-0120123","Feltöltések alap- és lábazati falak közé és alagsori vagy alá nem pincézett földszinti padozatok alá, az anyag szétterítésével, tömörítésével, mozgatásával,  osztályozatlan kavicsból Nyers homokos bányakavics NHK 0/125 Q-T.",0.7,"m3     ",null,null,{"$f":"ROUND(D82*F82, 0)","v":0},{"$f":"ROUND(D82*G82, 0)","v":0}]
[]
["3.","21-011-1.2.1/M","Fejtett föld felrakása szállítóeszközre, kézi erővel .",0.5,"m3     ",null,null,{"$f":"ROUND(D84*F84, 0)","v":0},{"$f":"ROUND(D84*G84, 0)","v":0}]
[]
["4.","21-011-1.2.1","Fejtett föld elszállítása az önkormányzat által kijelölt lerakóhelyre.",0.5,"m3",null,null,{"$f":"ROUND(D86*F86,0)","v":0},{"$f":"ROUND(D86*G86, 0)","v":0}]
[]
["5.","31-001-001.2.1-0220955","Betonacél helyszíni szerelése függőleges vagy vízszintes tartószerkezetbe,\nbordás betonacélból.\n",0.06,"t",null,null,{"$f":"ROUND(D88*F88, 0)","v":0},{"$f":"ROUND(D88*G88, 0)","v":0}]
[]
["6.","31-021-004.3.2-0240110","Sík vagy alulbordás vasbeton lemez készítése,betonszivattyús technológiával,     vibrátoros tömörítéssel,12 cm vastagság felett C25/30  min.kavicsbeton keverékből.              ",0.74,"m3",null,null,{"$f":"ROUND(D90*F90, 0)","v":0},{"$f":"ROUND(D90*G90, 0)","v":0}]
[]
["7.","15-002-001.1.1","Függőleges és ferde szerkezetek zsaluzása\nKétoldali falzsaluzás függőleges vagy ferde sík felülettel,\nfa zsaluzattal,\n3 m magasságig",0.53,"m2",null,null,{"$f":"ROUND(D92*F92, 0)","v":0},{"$f":"ROUND(D92*G92, 0)","v":0}]
[]
["8.","62-003-008.1-0618313","Rámpa burkolása beton kiselemes burkolókövekkel, homokágyazatba fektetve,kontrasztos színű kivitelben, optikai vezetősáv képzéssel.",6.6,"m2",null,null,{"$f":"ROUND(D94*F94,0)","v":0},{"$f":"ROUND(D94*G94,0)","v":0}]
[]
["9.","M/ 45-004-001-0180301","Rámpakorlát 3 soros,50 mm átmérőjű  tűzihorganyzott acélból, lekerekített tulnyúlással, színterezett kivitelben.",2.5,"m",null,null,{"$f":"ROUND(D96*F96, 0)","v":0},{"$f":"ROUND(D96*G96, 0)","v":0}]
[]
["10.","21-011-012","Munkahelyi depóniából építési törmelék konténerbe rakása, kézi erővel, önálló munka esetén elszámolva,konténer szállítás nélkül",4.0999999999999996,"m3     ",null,null,{"$f":"ROUND(D98*F98, 0)","v":0},{"$f":"ROUND(D98*G98, 0)","v":0}]
[]
["11.","21-011-011.2","Építési törmelék konténeres elszállítása, lerakása,lerakóhelyi díjjal,\n4,0 mł-es konténerbe\n\n",1,"db",null,null,{"$f":"ROUND(D100*F100,0)","v":0},{"$f":"ROUND(D100*G100,0)","v":0}]
[]
["12.","\"K\"","Kerítés bontása-és új kerítés készítése, a meglévővel azonos kivitelben.",1,"klt.",null,null,{"$f":"ROUND(D102*F102, 0)","v":0},{"$f":"ROUND(D102*G102, 0)","v":0}]
[null,null,"Rámpa készítése összesen:",{"$nulls":4},{"$f":"SUM(H80:H102)","v":0},{"$f":"SUM(I80:I102)","v":0}]
[]
[null,null,"PORTAÉPÜLET  ÖSSZESEN:",{"$nulls":4},{"$f":"H103+H76+H60+H53+H40+H19+H33","v":0},{"$f":"I103+I76+I60+I53+I40+I33+I19","v":0}]
[]
[]
[null,null,"Hídmagasítás"]
[]
["1.","\"K\"","Daruköltség.",1,"klt.",null,null,{"$f":"ROUND(D110*F110, 0)","v":0},{"$f":"ROUND(D110*G110, 0)","v":0}]
[]
["2.","21-003-007.1.1.1","Munkagödör és munkaárok készítése\nMunkagödör földkiemelése épületek és műtárgyakhelyén bármely konzisztenciájú, I-IV. oszt. talajban,\ngépi erővel, kiegészítő kézi munkával,\nalapterület: 10,00 m˛-ig,\n2,0 m mélységig",4,"m3",null,null," -",{"$f":"ROUND(D112*G112,0)","v":0}]
[]
["3.","21-011-1.2.1/M","Fejtett föld felrakása szállítóeszközre, kézi erővel .",4,"m3     ",null,null,{"$f":"ROUND(D114*F114, 0)","v":0},{"$f":"ROUND(D114*G114, 0)","v":0}]
[]
["4.","21-011-1.2.1","Fejtett föld elszállítása az önkormányzat által kijelölt lerakóhelyre.",4,"m3",null,null,{"$f":"ROUND(D116*F116,0)","v":0},{"$f":"ROUND(D116*G116, 0)","v":0}]
[]
["5.","23-003-002-0242210","Betonalap készítése  C25/30 minőségű kavicsbetonból.",4.5999999999999996,"m3     ",null,null,{"$f":"ROUND(D118*F118, 0)","v":0},{"$f":"ROUND(D118*G118, 0)","v":0}]
[]
["6.","15-002-001.1.1","Függőleges és ferde szerkezetek zsaluzása\nKétoldali falzsaluzás függőleges vagy ferde sík felülettel,\nfa zsaluzattal,\n3 m magasságig",1.2,"m2",null,null,{"$f":"ROUND(D120*F120, 0)","v":0},{"$f":"ROUND(D120*G120, 0)","v":0}]
[]
["7.","34/K","Acélszerkezetek a hídmagasításhoz, felületkezelve.",1,"klt.",null,null,{"$f":"ROUND(D122*F122, 0)","v":0},{"$f":"ROUND(D122*G122, 0)","v":0}]
[null,null,"É. 10.3 terv szerint."]
[]
["8."," 62-001-003.1","Kiskő, keramit és téglaburkolat bontása,\nhomokos kavicságyazattal",4,"m2",null,null,{"$f":"ROUND(D125*F125, 0)","v":0},{"$f":"ROUND(D125*G125, 0)","v":0}]
[]
["9.","62-003-008.1-0618313","Térburkolat készítése beton kiselemes burkolókövekkel, homokágyazatba fektetve",4,"m2",null,null,{"$f":"ROUND(D127*F127,0)","v":0},{"$f":"ROUND(D127*G127,0)","v":0}]
[]
[null,null,"Hídmagasítás összesen:",{"$nulls":4},{"$f":"SUM(H110:H128)","v":0},{"$f":"SUM(I110:I128)","v":0}]
[]
[null,null,"Strandröplabda pálya  felújítása"]
[]
["1.","21-003-007.1.5.1","Munkagödör földkiemelése épületek és műtárgyakhelyén bármely konzisztenciájú, I-IV. oszt. talajban,\ngépi erővel, kiegészítő kézi munkával,\nalapterület: 150,1-250,0 m2 között,\n5,5 m mélységig",47.2,"m3",null,null,{"$f":"ROUND(D133*F133, 0)","v":0},{"$f":"ROUND(D133*G133, 0)","v":0}]
[]
["2.","M/21-003-007.1.5.1","Homokfeltöltés kitermelése, deponálása.",47.2,"m3",null,null,{"$f":"ROUND(D135*F135, 0)","v":0},{"$f":"ROUND(D135*G135, 0)","v":0}]
[]
["3.","21-011-001.2.1","Fejtett föld felrakása szállítóeszközre, géppel.",47.2,"m3     ",null,null,{"$f":"ROUND(D137*F137, 0)","v":0},{"$f":"ROUND(D137*G137, 0)","v":0}]
[{"$nulls":7},{"$f":"ROUND(D138*F138, 0)","v":0},{"$f":"ROUND(D138*G138, 0)","v":0}]
["4.","21-011-1.2.1","Fejtett föld elszállítása az önkormányzat által kijelölt lerakóhelyre.",47.2,"m3",null,null,{"$f":"ROUND(D139*F139,0)","v":0},{"$f":"ROUND(D139*G139, 0)","v":0}]
[]
["5.","21-011-007.1-0120401","Homokfeltöltés készítése a deponált homokból, homokpótlással.",94.4,"m3",null,null,{"$f":"ROUND(D141*F141,0)","v":0},{"$f":"ROUND(D141*G141,0)","v":0}]
[]
["6.","22-002-003.2-0135654","Gyűjtő- és szivárgóhálózat csőfektetése\nSzivárgó építése,perforált, körkörös bordázatú PVC dréncsőből,\nbelső átmérő: 80-100 mm\nACO drain cső geotextíliával burkolva",150,"m",null,null,{"$f":"ROUND(D143*F143,0)","v":0},{"$f":"ROUND(D143*G143, 0)","v":0}]
[]
["7.","\"K\"","Részleges homokcsere.",24,"m3",null,null,{"$f":"ROUND(D145*F145,0)","v":0},{"$f":"ROUND(D145*G145,0)","v":0}]
[]
["8.","\"K\"","Kültéri háló szerelése állvánnyal.",1,"klt.",null,null,{"$f":"ROUND(D147*F147, 0)","v":0},{"$f":"ROUND(D147*G147, 0)","v":0}]
[]
["9.","\"K\"","Pályajelző szalag fektetése.",1,"klt.",null,null,{"$f":"ROUND(D149*F149, 0)","v":0},{"$f":"ROUND(D149*G149, 0)","v":0}]
[null,null,"Strandröplabda pálya  felújítása összesen:",{"$nulls":4},{"$f":"SUM(H133:H149)","v":0},{"$f":"SUM(I133:I149)","v":0}]
[]
[null,null,"Kerítés  építése"]
[]
["1.","45-004-030.1.2-0137914","Komplett, könnyített, rudazott táblás ipari kerítésrendszer rögzítése, oszlopok, valamint mezők folyamatos elhelyezésével,\nfúrt pontalapokra, az alaptestek kiemelésével,bebetonozásával, normál terepviszonyok mellett, a jelölt helyen kapuk létesítésével, a jelölt helyeken áthelyezhető kerítésszakaszok létesítésével\n1,51-2,00 m kerítés magasság között",265,"m",null,null,{"$f":"ROUND(D154*F154, 0)","v":0},{"$f":"ROUND(D154*G154, 0)","v":0}]
[null,null,"Kerítés  építése összesen:",{"$nulls":4},{"$f":"SUM(H154)","v":0},{"$f":"SUM(I154)","v":0}]
[]
[null,null,"Sövény telepítése"]
[]
["1.","91-001-001.1.2.1.2","Talajelőkészítés növénytelepítéshez,\nnövényesítendő felületek talajelőkészítése,trágyázás nélkül\nrotációs kapával,\nsík felületen és/vagy 20°-nál kisebb lejtőn,\nközépkötött talajon.\n",73,"m2",null,null,{"$f":"ROUND(D159*F159, 0)","v":0},{"$f":"ROUND(D159*G159, 0)","v":0}]
[]
["2.","91-001-003.2.1.1","Talajelőkészítés\nÁrok kiemelése,\násással,\n25 cm x 25 cm kanálméretig,\nlaza talajon, talajosztály: I-II.",73,"m",null,null,{"$f":"ROUND(D161*F161, 0)","v":0},{"$f":"ROUND(D161*G161, 0)","v":0}]
[]
["3.","91-003-001.2.1.2.1.3-0311823","Növények szabadföldi telepítése gödör- vagy árokásás nélkül cserjék,\nlombhullató fajokkal,sövényként,\nszabadgyökerű cserjével,műtrágyázással\nFORSYTHIA X INTERMEDIA \"LYNWOOD\" (Aranyvessző), SZGY. 40/ 60 cm, vagy  hibrid fagyal ( gyorsan növő ).",292,"db",null,null,{"$f":"ROUND(D163*F163, 0)","v":0},{"$f":"ROUND(D163*G163, 0)","v":0}]
[null,null,"Sövény telepítése összesen:",{"$nulls":4},{"$f":"SUM(H159:H163)","v":0},{"$f":"SUM(I159:I163)","v":0}]
[]
[null,null,"Új be-és kiléptető rendszer"]
[]
["1.","72-012-00","Forgókapu, Beléptető rendszer 2 db \nforgóvilla 2\nbeléptető kártya 300\nkártyaolvasó 2\nbeléptető központ vezérlő 2\n\n",0,"klt.",null,null,{"$f":"ROUND(D168*F168, 0)","v":0},{"$f":"ROUND(D168*G168, 0)","v":0}]
[]
["2.","\"K\"","Fémszerkezetű, akadálymentes közlekedésre alkalmas kapu elhelyezése.",0,"db",null,null,{"$f":"ROUND(D170*F170, 0)","v":0},{"$f":"ROUND(D170*G170, 0)","v":0}]
[null,null,"Új be-és kiléptető rendszer összesen:",{"$nulls":4},{"$f":"SUM(H168:H170)","v":0},{"$f":"SUM(I168:I170)","v":0}]
[]
[null,null,"Játszótér"]
[]
["1.","\"K\"","Kétüléses lengőhinta Bébi-és laphintával                   cikkszám BK 001/2.",1,"db",null,null,{"$f":"ROUND(D175*F175, 0)","v":0},{"$f":"ROUND(D175*G175, 0)","v":0}]
[]
["2.","\"K\"","\"Előd\" mászóvár cikkszám DKT 002.",1,"db",null,null,{"$f":"ROUND(D177*F177, 0)","v":0},{"$f":"ROUND(D177*G177, 0)","v":0}]
[]
["3."," 21-002-001.1","Humuszos termőréteg, termőföld leszedése,terítése gépi erővel, 18%-os terephajlásig,bármilyen talajban, szállítással,\n50,0 m-ig",15.88,"m3",null,null,{"$f":"ROUND(D179*F179,0)","v":0},{"$f":"ROUND(D179*G179,0)","v":0}]
[]
["4.","21-003-007.1.1.1","Munkagödör és munkaárok készítése\nMunkagödör földkiemelése épületek és műtárgyakhelyén bármely konzisztenciájú, I-IV. oszt. talajban,\ngépi erővel, kiegészítő kézi munkával,\nalapterület: 10,00 m˛-ig,\n2,0 m mélységig",1.6,"m3",null,null," -",{"$f":"ROUND(D181*G181,0)","v":0}]
[]
["5.","21-011-001.2.1","Fejtett föld felrakása szállítóeszközre, géppel.",17.5,"m3     ",null,null,{"$f":"ROUND(D183*F183, 0)","v":0},{"$f":"ROUND(D183*G183, 0)","v":0}]
[{"$nulls":7},{"$f":"ROUND(D184*F184, 0)","v":0},{"$f":"ROUND(D184*G184, 0)","v":0}]
["6.","21-011-1.2.1","Fejtett föld elszállítása az önkormányzat által kijelölt lerakóhelyre.",17.5,"m3",null,null,{"$f":"ROUND(D185*F185,0)","v":0},{"$f":"ROUND(D185*G185, 0)","v":0}]
[]
["7.","21-011-007.1-0120401","Homokfeltöltés játszótéren.",24,"m3",null,null,{"$f":"ROUND(D187*F187,0)","v":0},{"$f":"ROUND(D187*G187,0)","v":0}]
[]
["8.","23-003-002-0242210","Betonalap készítése  C25/30 minőségű kavicsbetonból.",1.6,"m3     ",null,null,{"$f":"ROUND(D189*F189, 0)","v":0},{"$f":"ROUND(D189*G189, 0)","v":0}]
[]
[null,null,"Játszótér összesen:",{"$nulls":4},{"$f":"SUM(H175:H189)","v":0},{"$f":"SUM(I175:I189)","v":0}]
[]
[null,null,"Partvonal homokfeltöltése"]
[]
["1.","21-011-007.1-0120401","Partvonal feltöltése homokkal, a tervezett helyen.",375,"m3",null,null,{"$f":"ROUND(D195*F195,0)","v":0},{"$f":"ROUND(D195*G195,0)","v":0}]
[null,null,"Partvonal homokfeltöltése összesen:",{"$nulls":4},{"$f":"SUM(H195)","v":0},{"$f":"SUM(I195)","v":0}]
[]
[null,null,"Strandfoci pálya kialakítása"]
[]
["1."," 21-002-001.1","Humuszos termőréteg, termőföld leszedése,terítése gépi erővel, 18%-os terephajlásig,bármilyen talajban, szállítással,\n50,0 m-ig",468,"m3",null,null,{"$f":"ROUND(D200*F200,0)","v":0},{"$f":"ROUND(D200*G200,0)","v":0}]
[]
["2.","21-011-001.2.1","Fejtett föld felrakása szállítóeszközre, géppel.",468,"m3     ",null,null,{"$f":"ROUND(D202*F202, 0)","v":0},{"$f":"ROUND(D202*G202, 0)","v":0}]
[]
["3.","21-011-1.2.1","Fejtett föld elszállítása az önkormányzat által kijelölt lerakóhelyre.",468,"m3",null,null,{"$f":"ROUND(D204*F204,0)","v":0},{"$f":"ROUND(D204*G204, 0)","v":0}]
[]
["4.","21-011-007.1-0120401","Homokfeltöltés focipályán.",468,"m3",null,null,{"$f":"ROUND(D206*F206,0)","v":0},{"$f":"ROUND(D206*G206,0)","v":0}]
[]
["5.","22-002-003.2-0135654","Gyűjtő- és szivárgóhálózat csőfektetése\nSzivárgó építése,perforált, körkörös bordázatú PVC dréncsőből,\nbelső átmérő: 80-100 mm\nACO drain cső geotextíliával burkolva\n",554,"m",null,null,{"$f":"ROUND(D208*F208,0)","v":0},{"$f":"ROUND(D208*G208, 0)","v":0}]
[]
["6.","\"K\"","Alumínium strandfoci kapu elhelyezése hálóval.",2,"klt.",null,null,{"$f":"ROUND(D210*F210, 0)","v":0},{"$f":"ROUND(D210*G210, 0)","v":0}]
[]
["7.","\"K\"","Strandfoci  zászlókészlet. .",1,"klt.",null,null,{"$f":"ROUND(D212*F212, 0)","v":0},{"$f":"ROUND(D212*G212, 0)","v":0}]
[]
["8.","\"K\"","Strandfoci pályavonal.",1,"klt.",null,null,{"$f":"ROUND(D214*F214, 0)","v":0},{"$f":"ROUND(D214*G214, 0)","v":0}]
[]
["9.","\"K\"","Focipalánk építése.",0,"m",null,null,{"$f":"ROUND(D216*F216, 0)","v":0},{"$f":"ROUND(D216*G216, 0)","v":0}]
[null,null,"Strandfoci pálya kialakítása összesen:",{"$nulls":4},{"$f":"SUM(H200:H216)","v":0},{"$f":"SUM(I200:I216)","v":0}]
[]
[null,null,"Csúszda  telepítése"]
[]
["1.","21-003-007.1.1.1","Munkagödör és munkaárok készítése\nMunkagödör földkiemelése épületek és műtárgyakhelyén bármely konzisztenciájú, I-IV. oszt. talajban,\ngépi erővel, kiegészítő kézi munkával,\nalapterület: 10,00 m˛-ig,\n2,0 m mélységig",27.2,"m3",null,null," -",{"$f":"ROUND(D221*G221,0)","v":0}]
[]
["2.","21-011-001.2.1","Fejtett föld felrakása szállítóeszközre, géppel.",27.2,"m3     ",null,null,{"$f":"ROUND(D223*F223, 0)","v":0},{"$f":"ROUND(D223*G223, 0)","v":0}]
[]
["3.","21-011-1.2.1","Fejtett föld elszállítása az önkormányzat által kijelölt lerakóhelyre.",27.2,"m3",null,null,{"$f":"ROUND(D225*F225,0)","v":0},{"$f":"ROUND(D225*G225, 0)","v":0}]
[]
["4.","31-001-001.2.1-0220955","Betonacél helyszíni szerelése függőleges vagy vízszintes tartószerkezetbe,\nbordás betonacélból.\n",1.63,"t",null,null,{"$f":"ROUND(D227*F227, 0)","v":0},{"$f":"ROUND(D227*G227, 0)","v":0}]
[]
["5.","23-003-002-0242210","Betonalap készítése  C25/30 minőségű kavicsbetonból.",27.2,"m3     ",null,null,{"$f":"ROUND(D229*F229, 0)","v":0},{"$f":"ROUND(D229*G229, 0)","v":0}]
[]
["6.","\"K\"","Családi típusú nyitott-zárt csúszda telepítése, csúszdanedvesítő vízgépészettel.",1,"db",null,null,{"$f":"ROUND(D231*F231, 0)","v":0},{"$f":"ROUND(D231*G231, 0)","v":0}]
[null,null,"Csúszda  telepítése összesen:",{"$nulls":4},{"$f":"SUM(H221:H231)","v":0},{"$f":"SUM(I221:I231)","v":0}]
[]
[null,null,"Mobil színpad"]
[]
["1.","\"K\"","Nivoflex Event típusú elemekből összeépítendő mobil színpad a szülséges rögzítő elemekkel szállítva, felállítva.",1,"klt.",null,null,{"$f":"ROUND(D236*F236, 0)","v":0},{"$f":"ROUND(D236*G236, 0)","v":0}]
[null,null,"Mobil színpad összesen:",{"$nulls":4},{"$f":"SUM(H236)","v":0},{"$f":"SUM(I236)","v":0}]
[]
[null,null,"Rendezvénysátor"]
[]
[null,"\"K\"","Rendezvénysátor beszerzése, a szülséges rögzítő elemekkel szállítva, felállítva.",0,"klt.",null,null,{"$f":"ROUND(D241*F241, 0)","v":0},{"$f":"ROUND(D241*G241, 0)","v":0}]
[null,null,"Rendezvénysátor összesen",{"$nulls":4},{"$f":"SUM(H241)","v":0},{"$f":"SUM(I241)","v":0}]
[]
[null,null,"Öltöző-zuhanyozó"]
[]
["1."," 21-002-001.1","Humuszos termőréteg, termőföld leszedése,terítése gépi erővel, 18%-os terephajlásig,bármilyen talajban, szállítással,\n50,0 m-ig",4.5,"m3",null,null,{"$f":"ROUND(D246*F246,0)","v":0},{"$f":"ROUND(D246*G246,0)","v":0}]
[]
["2.","21-003-6.1.1","Alapárok földkiemelése gépi erővel, kiegészítő kézi munkával, bármely konzisztenciájú, I-IV. oszt. talajban, dúcolás nélkül, 3,0 m2 szelvényig",2.0499999999999998,"m3",null,null," -",{"$f":"ROUND(D248*G248,0)","v":0}]
[]
["3.","21-011-007.5-0010402","Feltöltések alap- és lábazati falak közé és alagsori vagy alá nem pincézett földszinti padozatok alá, az anyag szétterítésével, mozgatásával,darált betonból,tömörítve.",2.7,"m3",null,null," -",{"$f":"ROUND(D250*G250,0)","v":0}]
[]
["4.","21-003-001.1.1.2","Lyukfúrás vagy kisméretű földkiemelés, oszlop,alaptest vagy lehorgonyzás részére,\nkézi erővel, 2 m mélységig,\n0,30 m átmérőig,\ntalajosztály: III.\n",2.7,"m",null,null," -",{"$f":"ROUND(D252*G252,0)","v":0}]
[]
["5.","21-011-006.1-0235353","Talajstabilizálás, talajerősítés\ngeotextiliával",18,"m2",null,null,{"$f":"ROUND(D254*F254, 0)","v":0},{"$f":"ROUND(D254*G254, 0)","v":0}]
[]
["6.","21-011-001.2.1","Fejtett föld felrakása szállítóeszközre, géppel.",6.8,"m3     ",null,null,{"$f":"ROUND(D256*F256, 0)","v":0},{"$f":"ROUND(D256*G256, 0)","v":0}]
[]
["7.","21-011-1.2.1","Fejtett föld elszállítása az önkormányzat által kijelölt lerakóhelyre.",6.8,"m3",null,null,{"$f":"ROUND(D258*F258,0)","v":0},{"$f":"ROUND(D258*G258, 0)","v":0}]
[]
["8.","23-003-002-0232210","Vasbeton lábazati gerenda készítése  C25/30 minőségű kavicsbetonból.",0.63,"m3",null,null,{"$f":"ROUND(D260*F260, 0)","v":0},{"$f":"ROUND(D260*G260, 0)","v":0}]
[null,null,"."]
["9.","23-003-002-0242210","Betonalap készítése  C25/30 minőségű kavicsbetonból.",2.0499999999999998,"m3     ",null,null,{"$f":"ROUND(D262*F262, 0)","v":0},{"$f":"ROUND(D262*G262, 0)","v":0}]
[{"$nulls":7},{"$f":"ROUND(D263*F263, 0)","v":0},{"$f":"ROUND(D263*G263, 0)","v":0}]
["10.","15-002-001.1.1","Függőleges és ferde szerkezetek zsaluzása\nKétoldali falzsaluzás függőleges vagy ferde sík felülettel,fa zsaluzattal,\n3 m magasságig",4.54,"m2",null,null,{"$f":"ROUND(D264*F264, 0)","v":0},{"$f":"ROUND(D264*G264, 0)","v":0}]
[]
["11.","31-001-001.2.1-0220955","Betonacél helyszíni szerelése függőleges vagy vízszintes tartószerkezetbe,\nbordás betonacélból.\n",0.09,"t",null,null,{"$f":"ROUND(D266*F266, 0)","v":0},{"$f":"ROUND(D266*G266, 0)","v":0}]
[]
["12."," 31-021-002.3.1-0230110","Vasbeton koszorú készítése,C C25/30 min. kavicsbetonból, betonszivattyús technológiával, vibrátoros tömörítéssel.",0.14000000000000001,"m3",null,null,{"$f":"ROUND(D268*F268, 0)","v":0},{"$f":"ROUND(D268*G268, 0)","v":0}]
[]
["13.","31-011-021.2.2.3-0240120","Vasbeton oszlop készítése,C C25/30 min. kavicsbetonból, betonszivattyús technológiával, vibrátoros tömörítéssel.",0.4,"m3",null,null,{"$f":"ROUND(D270*F270, 0)","v":0},{"$f":"ROUND(D270*G270, 0)","v":0}]
[]
["14.","15-003-2.1.1.1.1","Oszlopzsaluzás, állandó keresztmetszetű, négyszögű, fa zsaluzattal, kitámasztással, 3 m magasságig, 60 cm oldalméretig",6.54,"m2",null,null,{"$f":"ROUND(D272*F272, 0)","v":0},{"$f":"ROUND(D272*G272, 0)","v":0}]
[]
["18.","31-030-011.2.1.2-0121110","Beton aljzat készítése C 16/20 min.betonból betonszivattyú továbbítással és kézi bedolgozással,merev aljzatra, tartószerkezetre a felület vassimítóval eldolgozva, cementszórással, 10 cm vtg., a széleken vasalva.\n",0.28999999999999998,"m3",null,null,{"$f":"ROUND(D274*F274, 0)","v":0},{"$f":"ROUND(D274*G274, 0)","v":0}]
[{"$nulls":7},{"$f":"ROUND(D275*F275, 0)","v":0},{"$f":"ROUND(D275*G275, 0)","v":0}]
["19.","15-002-004.2.1","Egyoldali falzsaluzás függőleges vagy ferde sík felülettel,\nszerelt táblás zsaluzattal, kézzel mozgatva,támasztó bakkal, kihorgonyozva,\n3 m magasságig",0.5,"m2",null,null,{"$f":"ROUND(D276*F276, 0)","v":0},{"$f":"ROUND(D276*G276, 0)","v":0}]
[]
["20.","33-001-001.1.1.1.1.1.2-1110001","Falazás és egyéb kőműves munkák\nTeherhordó és kitöltő falazatok\nTeherhordó és kitöltő falazat készítése,\négetett agyag-kerámia termékekből,\nnormál elemekből,\n240-250 mm falvastagságban,\n250x120x65 mm-es méretű\nkisméretű tömör téglából vagy kevéslyukú téglából,\nfalazó, meszes cementhabarcsba falazva\nKisméretű tömör tégla 250x120x65 mm nsz.M 5 (Hf50-cm) falazó, meszes cementhabarcs",1.1499999999999999,"m3",null,null,{"$f":"ROUND(D278*F278, 0)","v":0},{"$f":"ROUND(D278*G278, 0)","v":0}]
[]
["21.","34-002-001.1.1.2-0990514","Fém- és könnyű épületszerkezetek szerelése\nKönnyűszerkezetes térlefedő burkolati rendszerek\nEgyhéjú tetőfedés profilos fémlemez elemekből,\nönfúró csavarokkal rögzítve,10,0 m2/db táblaméretig,\n30 mm hullámmagasságig,\n16-20 mm hullámmagasságú tetőprofilból\nLINDAB Coverline LTP 20/0,7 trapézlemez profil tűzihorganyzott + Classic bevonat, standard színben",5.9,"m2",null,null,{"$f":"ROUND(D280*F280, 0)","v":0},{"$f":"ROUND(D280*G280, 0)","v":0}]
[]
["22.","34-001-001.1.3","Acél vázszerkezet szerelése felületkezelve..",1,"klt.",null,null,{"$f":"ROUND(D282*F282, 0)","v":0},{"$f":"ROUND(D282*G282, 0)","v":0}]
[]
["23.","36-001-001.1.1-0550040","Sima oldalfalvakolat készítése kézi felhordással,\nbelső, vakoló cementes mészhabarccsal,\ntéglafelületen, 1,5 cm vastagságban\nHvb8-mc, belső, vakoló cementes mészhabarccsal ésHs60-cm, felületképző (simító), meszescementhabarccsal",14.04,"m2",null,null,{"$f":"ROUND(D284*F284, 0)","v":0},{"$f":"ROUND(D284*G284, 0)","v":0}]
[]
["24."," 42-012-001.2.1.2.1.1-0212010","Fal-, pillér-, oszlopburkolat készítése\nkültérben vakolt alapfelületen,\ngres, kőporcelán lappal,\nkötésben vagy hálósan, 3-5 mm vtg. ragasztóba rakva, 1-10 mm fugaszélességgel,lezáró profillal.",7.44,"m2",null,null,{"$f":"ROUND(D286*F286, 0)","v":0},{"$f":"ROUND(D286*G286, 0)","v":0}]
[]
["25.","42/K","Mükő zuhanytálca burkolat készítése,É.07.1. terv szerint.",2.85,"m2",null,null,{"$f":"ROUND(D288*F288, 0)","v":0},{"$f":"ROUND(D288*G288, 0)","v":0}]
[]
["26.","\"K\"","Gyalult deszka paraván készítése zártszelvény merevítéssel, felületkezelve."]
[null,null,"1,24x2,60 m méretü 2 db"]
[null,null,"1,00x1,60 m méretű 1 db",5.57,"m2",null,null,{"$f":"ROUND(D292*F292, 0)","v":0},{"$f":"ROUND(D292*G292, 0)","v":0}]
[]
["27.","\"K\"","Gyalult deszka ajtó készítése zártszelvény merevítéssel, felületkezelve."]
[null,null,"1,00x1,6 m méretű",2,"db",null,null,{"$f":"ROUND(D295*F295, 0)","v":0},{"$f":"ROUND(D295*G295, 0)","v":0}]
[{"$nulls":7},{"$f":"ROUND(D296*F296, 0)","v":0},{"$f":"ROUND(D296*G296, 0)","v":0}]
["28.","47-013-003","Homlokzatfestés vakolaton, két rétegben.",6.6,"m2",null,null,{"$f":"ROUND(D297*F297, 0)","v":0},{"$f":"ROUND(D297*G297, 0)","v":0}]
[]
["29.","M/62-003-008.1-0618313","Kiselemes beton térkőburkolat készítése 6 cm vtg. kővel,alatta 4 cm tömörített ágyazóhomok, 15 cm tömörített betonzuzalék, 1 rtg. Geotextilia, előtömörített talaj.",12.74,"m2",null,null,{"$f":"ROUND(D299*F299,0)","v":0},{"$f":"ROUND(D299*G299,0)","v":0}]
[null,null,"Öltöző-zuhanyozó összesen:",{"$nulls":4},{"$f":"SUM(H246:H299)","v":0},{"$f":"SUM(I246:I299)","v":0}]
[]
[null,null,"Kerékpártároló"]
[]
["1.","21-003-001.1.1.2","Lyukfúrás vagy kisméretű földkiemelés, oszlop,alaptest vagy lehorgonyzás részére,\nkézi erővel, 2 m mélységig,\n0,30 m átmérőig,\ntalajosztály: III.\n",13.6,"m",null,null," -",{"$f":"ROUND(D304*G304,0)","v":0}]
[]
["2.","21-011-001.2.1","Fejtett föld felrakása szállítóeszközre, géppel.",0.9,"m3     ",null,null,{"$f":"ROUND(D306*F306, 0)","v":0},{"$f":"ROUND(D306*G306, 0)","v":0}]
[]
["3.","21-011-1.2.1","Fejtett föld elszállítása az önkormányzat által kijelölt lerakóhelyre.",0.9,"m3",null,null,{"$f":"ROUND(D308*F308,0)","v":0},{"$f":"ROUND(D308*G308, 0)","v":0}]
[]
["4.","23-003-002-0242210","Betonalap készítése  C25/30 minőségű kavicsbetonból.",0.9,"m3     ",null,null,{"$f":"ROUND(D310*F310, 0)","v":0},{"$f":"ROUND(D310*G310, 0)","v":0}]
[]
["5.","31-001-001.2.1-0220955","Betonacél helyszíni szerelése függőleges vagy vízszintes tartószerkezetbe,\nbordás betonacélból.\n",5.3999999999999999E-2,"t",null,null,{"$f":"ROUND(D312*F312, 0)","v":0},{"$f":"ROUND(D312*G312, 0)","v":0}]
[]
["6.","34-001-001.1.3","Fémvázas fedett kerékpártároló szerelése.",37.299999999999997,"m2",null,null,{"$f":"ROUND(D314*F314, 0)","v":0},{"$f":"ROUND(D314*G314, 0)","v":0}]
[]
["7.","92/K","Típus kerékpártároló állvány elhelyezése."]
[null,null,"4 -es állvány",6,"db",null,null,{"$f":"ROUND(D317*F317, 0)","v":0},{"$f":"ROUND(D317*G317, 0)","v":0}]
[null,null,"5-ös állvány",4,"db",null,null,{"$f":"ROUND(D318*F318, 0)","v":0},{"$f":"ROUND(D318*G318, 0)","v":0}]
[null,null,"Kerékpártároló összesen:",{"$nulls":4},{"$f":"SUM(H304:H318)","v":0},{"$f":"SUM(I304:I318)","v":0}]
[]
[null,null,"Csónaktároló megállóhely É.11.1"]
[]
["1.","21-003-007.1.1.1","Munkagödör és munkaárok készítése\nMunkagödör földkiemelése épületek és műtárgyakhelyén bármely konzisztenciájú, I-IV. oszt. talajban,\ngépi erővel, kiegészítő kézi munkával,\nalapterület: 10,00 m˛-ig,\n2,0 m mélységig",3.8,"m3",null,null," -",{"$f":"ROUND(D323*G323,0)","v":0}]
[]
["2.","21-011-001.2.1","Fejtett föld felrakása szállítóeszközre, géppel.",3.8,"m3     ",null,null,{"$f":"ROUND(D325*F325, 0)","v":0},{"$f":"ROUND(D325*G325, 0)","v":0}]
[]
["3.","21-011-1.2.1","Fejtett föld elszállítása az önkormányzat által kijelölt lerakóhelyre.",3.8,"m3",null,null,{"$f":"ROUND(D327*F327,0)","v":0},{"$f":"ROUND(D327*G327, 0)","v":0}]
[]
["4.","M/21-001-013.1.1-0631101","Tereprendezés, füvesítés sík felületen talaj-előkészítéssel,fűmagkeverékkel,gépi erővel\nKITE PÁZSIT fűmagkeverék, 40-50 dkg/10 m2\n",20,"m2",null,null,{"$f":"ROUND(D329*F329,0)","v":0},{"$f":"ROUND(D329*G329, 0)","v":0}]
[]
["5.","23-003-002-0242210","Betonalap készítése  C25/30 minőségű kavicsbetonból.",3.4,"m3     ",null,null,{"$f":"ROUND(D331*F331, 0)","v":0},{"$f":"ROUND(D331*G331, 0)","v":0}]
[]
["6.","M/62-003-008.1-0618313","Járdaburkolat készítése kiselemes beton térkőburkolatból szegéllyel, 6 cm vtg. burkolókővel, alatta 4 cm tömörített ágyazóhomok, 15 cm tömörített betonzuzalék, 1 rtg. Geotextilia, előtömörített talaj.",40.5,"m2",null,null,{"$f":"ROUND(D333*F333,0)","v":0},{"$f":"ROUND(D333*G333,0)","v":0}]
[]
["7.","\"K\"","Csónaktároló konténer telepítése, zártszelvény csónaktároló állvánnyal É.11.1. terv szerint.",1,"db",null,null,{"$f":"ROUND(D335*F335,0)","v":0},{"$f":"ROUND(D335*G335,0)","v":0}]
[]
["8.","92-003-011.2","Ismertető tábla É.11.6 terv szerint.",1,"db",null,null,{"$f":"ROUND(D337*F337,0)","v":0},{"$f":"ROUND(D337*G337,0)","v":0}]
[]
["9.","M/ 92-003-003.7-0155266","Hulladéékgyűjtő elhelyezése",2,"db",null,null,{"$f":"ROUND(D339*F339,0)","v":0},{"$f":"ROUND(D339*G339,0)","v":0}]
["10.","M/92-003-001.1.1.2","Rögzített pad asztallal.",2,"egység",null,null,{"$f":"ROUND(D340*F340,0)","v":0},{"$f":"ROUND(D340*G340,0)","v":0}]
[]
["11.","21-003-007.1.1.1","Munkagödör és munkaárok készítése\nMunkagödör földkiemelése épületek és műtárgyakhelyén bármely konzisztenciájú, I-IV. oszt. talajban,\ngépi erővel, kiegészítő kézi munkával,\nalapterület: 10,00 m˛-ig,\n2,0 m mélységig                                                             - táblához,asztal+padhoz, hulladékgyűjtőhöz -",1.8,"m3",null,null," -",{"$f":"ROUND(D342*G342,0)","v":0}]
[]
["12.","21-011-001.2.1","Fejtett föld felrakása szállítóeszközre, géppel.",1.8,"m3     ",null,null,{"$f":"ROUND(D344*F344, 0)","v":0},{"$f":"ROUND(D344*G344, 0)","v":0}]
[]
["13.","23-003-002-0242210","Betonalap készítése  C25/30 minőségű kavicsbetonból.",1.6,"m3     ",null,null,{"$f":"ROUND(D346*F346, 0)","v":0},{"$f":"ROUND(D346*G346, 0)","v":0}]
[]
["14.","\"K\"","Új mobil stég telepítése.",1,"klt.",null,null,{"$f":"ROUND(D348*F348, 0)","v":0},{"$f":"ROUND(D348*G348, 0)","v":0}]
[]
[null,null,"Csónaktároló megállóhely összesen:",{"$nulls":4},{"$f":"SUM(H323:H348)","v":0},{"$f":"SUM(I323:I348)","v":0}]
[]
[null,null,"Felső-körgáti zsilip megállóhely É.11.2"]
[]
["1.","M/21-001-013.1.1-0631101","Tereprendezés, füvesítés sík felületen talaj-előkészítéssel,fűmagkeverékkel,gépi erővel\nKITE PÁZSIT fűmagkeverék, 40-50 dkg/10 m2\n",10,"m2",null,null,{"$f":"ROUND(D354*F354,0)","v":0},{"$f":"ROUND(D354*G354, 0)","v":0}]
[]
["2.","\"K\"","Meglévő stég felújítása, deszkák pótlásával, fa-és fémszerkezetek mázolásával.",1,"klt.",null,null,{"$f":"ROUND(D356*F356,0)","v":0},{"$f":"ROUND(D356*G356, 0)","v":0}]
[]
["3.","92-003-011.2","Ismertető tábla É.11.6 terv szerint.",1,"db",null,null,{"$f":"ROUND(D358*F358,0)","v":0},{"$f":"ROUND(D358*G358,0)","v":0}]
[]
["4.","M/ 92-003-003.7-0155266","Hulladéékgyűjtő elhelyezése",1,"db",null,null,{"$f":"ROUND(D360*F360,0)","v":0},{"$f":"ROUND(D360*G360,0)","v":0}]
["5.","M/92-003-001.1.1.2","Rögzített pad asztallal.",1,"egység",null,null,{"$f":"ROUND(D361*F361,0)","v":0},{"$f":"ROUND(D361*G361,0)","v":0}]
[]
["6.","21-003-007.1.1.1","Munkagödör és munkaárok készítése\nMunkagödör földkiemelése épületek és műtárgyakhelyén bármely konzisztenciájú, I-IV. oszt. talajban,\ngépi erővel, kiegészítő kézi munkával,\nalapterület: 10,00 m˛-ig,\n2,0 m mélységig                                                             - táblához,asztal+padhoz, hulladékgyűjtőhöz -",1.35,"m3",null,null," -",{"$f":"ROUND(D363*G363,0)","v":0}]
[]
["7.","21-011-001.2.1","Fejtett föld felrakása szállítóeszközre, géppel.",1.35,"m3     ",null,null,{"$f":"ROUND(D365*F365, 0)","v":0},{"$f":"ROUND(D365*G365, 0)","v":0}]
[]
["8.","23-003-002-0242210","Betonalap készítése  C25/30 minőségű kavicsbetonból.",1.2,"m3     ",null,null,{"$f":"ROUND(D367*F367, 0)","v":0},{"$f":"ROUND(D367*G367, 0)","v":0}]
[null,null,"Felső-körgáti zsilip megállóhely összesen:",{"$nulls":4},{"$f":"SUM(H354:H367)","v":0},{"$f":"SUM(I354:I367)","v":0}]
[]
[null,null,"A piaci épületek közötti átjáró magasságánál készülő megállóhely É.11.3."]
[]
["1.","M/21-001-013.1.1-0631101","Tereprendezés, füvesítés sík felületen talaj-előkészítéssel,fűmagkeverékkel,gépi erővel\nKITE PÁZSIT fűmagkeverék, 40-50 dkg/10 m2\n",10,"m2",null,null,{"$f":"ROUND(D372*F372,0)","v":0},{"$f":"ROUND(D372*G372, 0)","v":0}]
[]
["2.","92-003-011.2","Ismertető tábla É.11.6 terv szerint.",1,"db",null,null,{"$f":"ROUND(D374*F374,0)","v":0},{"$f":"ROUND(D374*G374,0)","v":0}]
[]
["3.","M/ 92-003-003.7-0155266","Hulladéékgyűjtő elhelyezése",1,"db",null,null,{"$f":"ROUND(D376*F376,0)","v":0},{"$f":"ROUND(D376*G376,0)","v":0}]
["4.","M/92-003-001.1.1.2","Rögzített pad asztallal.",1,"egység",null,null,{"$f":"ROUND(D377*F377,0)","v":0},{"$f":"ROUND(D377*G377,0)","v":0}]
[]
["5.","21-003-007.1.1.1","Munkagödör és munkaárok készítése\nMunkagödör földkiemelése épületek és műtárgyakhelyén bármely konzisztenciájú, I-IV. oszt. talajban,\ngépi erővel, kiegészítő kézi munkával,\nalapterület: 10,00 m˛-ig,\n2,0 m mélységig                                                             - táblához,asztal+padhoz, hulladékgyűjtőhöz -",1.35,"m3",null,null," -",{"$f":"ROUND(D379*G379,0)","v":0}]
[]
["6.","21-011-001.2.1","Fejtett föld felrakása szállítóeszközre, géppel.",1.35,"m3     ",null,null,{"$f":"ROUND(D381*F381, 0)","v":0},{"$f":"ROUND(D381*G381, 0)","v":0}]
[]
["7.","23-003-002-0242210","Betonalap készítése  C25/30 minőségű kavicsbetonból.",1.2,"m3     ",null,null,{"$f":"ROUND(D383*F383, 0)","v":0},{"$f":"ROUND(D383*G383, 0)","v":0}]
[]
["8.","\"K\"","Új mobil stég telepítése.",1,"klt.",null,null,{"$f":"ROUND(D385*F385, 0)","v":0},{"$f":"ROUND(D385*G385, 0)","v":0}]
[null,null,"A piaci épületek közötti átjáró magasságánál készülő megállóhely összesen:",{"$nulls":4},{"$f":"SUM(H372:H385)","v":0},{"$f":"SUM(I372:I385)","v":0}]
[]
[null,null,"Bagoly vendéglőnél készülő megállóhely É.11.4."]
[]
["1.","M/21-001-013.1.1-0631101","Tereprendezés, füvesítés sík felületen talaj-előkészítéssel,fűmagkeverékkel,gépi erővel\nKITE PÁZSIT fűmagkeverék, 40-50 dkg/10 m2\n",10,"m2",null,null,{"$f":"ROUND(D390*F390,0)","v":0},{"$f":"ROUND(D390*G390, 0)","v":0}]
[]
["2.","92-003-011.2","Ismertető tábla É.11.6 terv szerint.",1,"db",null,null,{"$f":"ROUND(D392*F392,0)","v":0},{"$f":"ROUND(D392*G392,0)","v":0}]
[]
["3.","M/ 92-003-003.7-0155266","Hulladéékgyűjtő elhelyezése",1,"db",null,null,{"$f":"ROUND(D394*F394,0)","v":0},{"$f":"ROUND(D394*G394,0)","v":0}]
["4.","M/92-003-001.1.1.2","Rögzített pad asztallal.",1,"egység",null,null,{"$f":"ROUND(D395*F395,0)","v":0},{"$f":"ROUND(D395*G395,0)","v":0}]
[]
["5.","21-003-007.1.1.1","Munkagödör és munkaárok készítése\nMunkagödör földkiemelése épületek és műtárgyakhelyén bármely konzisztenciájú, I-IV. oszt. talajban,\ngépi erővel, kiegészítő kézi munkával,\nalapterület: 10,00 m˛-ig,\n2,0 m mélységig                                                             - táblához,asztal+padhoz, hulladékgyűjtőhöz -",1.35,"m3",null,null," -",{"$f":"ROUND(D397*G397,0)","v":0}]
[]
["6.","21-011-001.2.1","Fejtett föld felrakása szállítóeszközre, géppel.",1.35,"m3     ",null,null,{"$f":"ROUND(D399*F399, 0)","v":0},{"$f":"ROUND(D399*G399, 0)","v":0}]
[]
["7.","23-003-002-0242210","Betonalap készítése  C25/30 minőségű kavicsbetonból.",1.2,"m3     ",null,null,{"$f":"ROUND(D401*F401, 0)","v":0},{"$f":"ROUND(D401*G401, 0)","v":0}]
[]
["8.","\"K\"","Új mobil stég telepítése.",1,"klt.",null,null,{"$f":"ROUND(D403*F403, 0)","v":0},{"$f":"ROUND(D403*G403, 0)","v":0}]
[null,null,"Bagoly vendéglőnél készülő megállóhely összesen:",{"$nulls":4},{"$f":"SUM(H390:H403)","v":0},{"$f":"SUM(I390:I403)","v":0}]
[]
[null,null,"Alsó-körgáti zsilip megállóhely É.11.5."]
[]
["1.","M/21-001-013.1.1-0631101","Tereprendezés, füvesítés sík felületen talaj-előkészítéssel,fűmagkeverékkel,gépi erővel\nKITE PÁZSIT fűmagkeverék, 40-50 dkg/10 m2\n",10,"m2",null,null,{"$f":"ROUND(D408*F408,0)","v":0},{"$f":"ROUND(D408*G408, 0)","v":0}]
[]
["2.","\"K\"","Meglévő stég felújítása, deszkák pótlásával, fa-és fémszerkezetek mázolásával.",1,"klt.",null,null,{"$f":"ROUND(D410*F410,0)","v":0},{"$f":"ROUND(D410*G410, 0)","v":0}]
[]
["3.","92-003-011.2","Ismertető tábla É.11.6 terv szerint.",1,"db",null,null,{"$f":"ROUND(D412*F412,0)","v":0},{"$f":"ROUND(D412*G412,0)","v":0}]
[]
["4.","M/ 92-003-003.7-0155266","Hulladéékgyűjtő elhelyezése",1,"db",null,null,{"$f":"ROUND(D414*F414,0)","v":0},{"$f":"ROUND(D414*G414,0)","v":0}]
[]
["5.","M/92-003-001.1.1.2","Rögzített pad asztallal.",1,"egység",null,null,{"$f":"ROUND(D416*F416,0)","v":0},{"$f":"ROUND(D416*G416,0)","v":0}]
[]
["6.","21-003-007.1.1.1","Munkagödör és munkaárok készítése\nMunkagödör földkiemelése épületek és műtárgyakhelyén bármely konzisztenciájú, I-IV. oszt. talajban,\ngépi erővel, kiegészítő kézi munkával,\nalapterület: 10,00 m˛-ig,\n2,0 m mélységig                                                             - táblához,asztal+padhoz, hulladékgyűjtőhöz -",1.35,"m3",null,null," -",{"$f":"ROUND(D418*G418,0)","v":0}]
[]
["7.","21-011-001.2.1","Fejtett föld felrakása szállítóeszközre, géppel.",1.35,"m3     ",null,null,{"$f":"ROUND(D420*F420, 0)","v":0},{"$f":"ROUND(D420*G420, 0)","v":0}]
[]
["8.","23-003-002-0242210","Betonalap készítése  C25/30 minőségű kavicsbetonból.",1.2,"m3     ",null,null,{"$f":"ROUND(D422*F422, 0)","v":0},{"$f":"ROUND(D422*G422, 0)","v":0}]
[null,null,"Alsó-körgáti zsilip megállóhely összesen:",{"$nulls":4},{"$f":"SUM(H408:H422)","v":0},{"$f":"SUM(I408:I422)","v":0}]
[]
[null,null,"Parkoló építés"]
[]
["1.","62-001-001.1","Szegélyek bontása bármely anyagból;kiemelt vagy süllyesztett szegélyek, futósorok,\nbetongerendával",84,"m",null,null,{"$f":"D427*F427","v":0},{"$f":"D427*G427","v":0}]
[]
["2."," 62-002-001.4.1-0610151","Kiemelt szegély építése 25/15/30",180,"m",null,null,{"$f":"D429*F429","v":0},{"$f":"D429*G429","v":0}]
[]
["3.",null,"Ú-01 új aszfaltréteg meglévő aszfalton"]
[null,null,"4 cm meglévő aszfalt felmarás\n4 cm új aszfalt kopóréteg AC11\nÚj bitumenes tapadóhíd réteg\nMeglévő, megmaradó rétegek"]
[]
[null,"63-001-003.2 ","4 cm vtg.meglévő aszfalt felmarás",50,"m2",null,null,{"$f":"D434*F434","v":0},{"$f":"D434*G434","v":0}]
[]
[null," 63-103-001.31.2.3-0750206","Hengerelt aszfalt kopóréteg készítése (AC),az alatta lévő réteg felületének előzetes letakarításával és bitumenes permetezéssel,\nAC 11 kopó aszfaltkeverékből, 40 mm vastagságban terítve\nKopóréteg AC11 kopó 50/70, AC11 kopó 70/100 típusú bitumennel, N igénybevételi kat. útszakaszok kopórétege, homokkal, zúzalékkal.",3.5,"m3",null,null,{"$f":"D436*F436","v":0},{"$f":"D436*G436","v":0}]
[]
[null,"\"K\"","Aszfalt 20,4 m3 x2=41 t  átvételi ár",0,"kg",null,null,{"$f":"ROUND(D438*F438,0)","v":0},{"$f":"ROUND(D438*G438,0)","v":0}]
[]
[null,"\"K\"","Aszfalt beszállítása  átvevőhöz.",0,"klt",null,null,{"$f":"ROUND(D440*F440,0)","v":0},{"$f":"ROUND(D440*G440,0)","v":0}]
[]
["4.",null,"Ú-02 új aszfaltréteg bontandó betonon"]
[null,null,"20 cm meglévő beton burkolat feltörése\n4 cm új aszfalt kopóréteg AC11\n6 cm új aszfalt alapréteg AC22\n15 cm új CKt"]
[]
[null,"64-001-002.2","Beton pályaburkolatok bontási és helyreállítási munkái\nKavicsbeton burkolat bontása,\ngéppel, hidraulikus bontófejjel",0,"m3",null,null,{"$f":"D445*F445","v":0},{"$f":"D445*G445","v":0}]
[]
[null," 63-103-001.31.2.3-0750206","Hengerelt aszfalt kopóréteg készítése (AC),az alatta lévő réteg felületének előzetes letakarításával és bitumenes permetezéssel,\nAC 11 kopó aszfaltkeverékből, 40 mm vastagságban terítve.\n",0,"m3",null,null,{"$f":"D447*F447","v":0},{"$f":"D447*G447","v":0}]
[]
[null," 63-103-001.1.2.2-0750005","Hengerelt aszfalt alapréteg készítése (AC),a meglévő alap felületének előzetes letakarításával, bitumenemulziós alápermetezéssel,\nAC 22 alap aszfaltkeverékből, 60 mm vastagságban terítve.\n",0,"m3",null,null,{"$f":"D449*F449","v":0},{"$f":"D449*G449","v":0}]
[]
[null," 61-003-002.1-1710010","CKT alapréteg készítése 15 cm vastagságban.",0,"m3",null,null,{"$f":"D451*F451","v":0},{"$f":"D451*G451","v":0}]
[]
[null,"21-011-011.2","Építési törmelék konténeres elszállítása, lerakása,lerakóhelyi díjjal,4,0 mł-es konténerbe.\n\n",0,"db",null,null,{"$f":"D453*F453","v":0},{"$f":"D453*G453","v":0}]
[]
["5.",null,"Ú-03 új aszfalt úttest"]
[null,null,"4 cm új aszfalt kopóréteg AC11\n6 cm új aszfalt alapréteg AC22\n25 cm új CKt\n20 cm új nyers homokos\nbányakavics NHK 0/125                                                                                     1 rtg. új geotextília terítés"]
[]
[null," 63-103-001.31.2.3-0750206","Hengerelt aszfalt kopóréteg készítése (AC),az alatta lévő réteg felületének előzetes letakarításával és bitumenes permetezéssel,\nAC 11 kopó aszfaltkeverékből, 40 mm vastagságban terítve.\n",0,"m3",null,null,{"$f":"D458*F458","v":0},{"$f":"D458*G458","v":0}]
[]
[null,null,"40 x 60 x 10 cm gyeprácskő burkolat készítése",550,"m2",null,null,{"$f":"D460*F460","v":0},{"$f":"D460*G460","v":0}]
[]
[null," 61-003-002.1-1710010","CKT alapréteg készítése 20 cm vastagságban.",110,"m3",null,null,{"$f":"D462*F462","v":0},{"$f":"D462*G462","v":0}]
[]
[null,"21-004-004.2.2-0120123","Talajjavító réteg készítése vonalas létesítményeknél,3,00 m szélesség felett,\nosztályozatlan kavicsból\nNyers homokos bányakavics NHK 0/125 Q-T, ",110,"m3",null,null,{"$f":"D464*F464","v":0},{"$f":"D464*G464","v":0}]
[]
[null,"21-011-006.1-0235353","Talajstabilizálás, talajerősítés\ngeotextiliával",550,"m2",null,null,{"$f":"ROUND(D466*F466, 0)","v":0},{"$f":"ROUND(D466*G466, 0)","v":0}]
[]
[null,"21-004-5.1.1.1","Tükörkészítés tömörítés nélkül,\nsík felületen, gépi erővel\nkiegészítő kézi munkával                                                         talajosztály: I-IV.",550,"m2",null,null,{"$f":"D468*F468","v":0},{"$f":"D468*G468","v":0}]
[]
[null,"21-008-002.1.9","Tömörítés bármely tömörítési osztálybangépi erővel,\nnagy felületen,\ntömörségi fok: 97%( altalaj + feltöltés  )                                                 ",280,"m3",null,null,{"$f":"D470*F470","v":0},{"$f":"D470*G470","v":0}]
[]
[null,"21-008-3.1.1                  ","Simító hengerlés\na földmű (tükör) felületén,\ngépi erővel, 3,0 m szélességig",550,"m2",null,null,{"$f":"D472*F472","v":0},{"$f":"D472*G472","v":0}]
[]
[null," 21-002-001.1","Humuszos termőréteg, termőföld leszedése,terítése gépi erővel, 18%-os terephajlásig,bármilyen talajban, szállítással,\n50,0 m-ig",193,"m3",null,null,{"$f":"ROUND(D474*F474,0)","v":0},{"$f":"ROUND(D474*G474,0)","v":0}]
[]
[null,"21-011-001.2.1","Fejtett föld felrakása szállítóeszközre, géppel.",193,"m3     ",null,null,{"$f":"ROUND(D476*F476, 0)","v":0},{"$f":"ROUND(D476*G476, 0)","v":0}]
[{"$nulls":7},{"$f":"ROUND(D477*F477, 0)","v":0},{"$f":"ROUND(D477*G477, 0)","v":0}]
[null,"21-011-1.2.1","Fejtett föld elszállítása az önkormányzat által kijelölt lerakóhelyre.",193,"m3",null,null,{"$f":"ROUND(D478*F478,0)","v":0},{"$f":"ROUND(D478*G478, 0)","v":0}]
[]
["6.","M/68-002-002","Jelzőtáblák elhelyezése horganyzott acél oszlpra szerelve, beton alapozással,alumíniumból, fényvisszaverő felülettel.",8,"db",null,null,{"$f":"D480*F480","v":0},{"$f":"D480*G480","v":0}]
[]
["7.","68-003-001.1.2-0020282","Burkolati jelek felfestése , tartós, fehér színnel",60,"m2",null,null,{"$f":"D482*F482","v":0},{"$f":"D482*G482","v":0}]
[]
["8.","M/53-007-008.1.2-0410011","Csapadékvíz összefolyó akna felújítása, kitakarítása szükség szerint,öntöttvas víznyelőrács cseréje szükség szerint,cementhabarcs rögzítéssel.",5,"db",null,null,{"$f":"D484*F484","v":0},{"$f":"D484*G484","v":0}]
[]
["9.","M/71-101-001.41","Meglévő, felújítandó kandelláberek.",4,"db",null,null,{"$f":"D486*F486","v":0},{"$f":"D486*G486","v":0}]
[]
["10.","M/71-101-001.41","Áthelyezendő, felújítandó kandelláberek.",3,"db",null,null,{"$f":"D488*F488","v":0},{"$f":"D488*G488","v":0}]
[]
["11.","M/21-001-013.1.1-0631101","Tereprendezés, füvesítés sík felületen talaj-előkészítéssel,fűmagkeverékkel,gépi erővel\nKITE PÁZSIT fűmagkeverék, 40-50 dkg/10 m2\n",550,"m2",null,null,{"$f":"ROUND(D490*F490,0)","v":0},{"$f":"ROUND(D490*G490, 0)","v":0}]
[]
["12.","21-001-012.1-0313052","Facsemete ültetése,\nszabadgyökerű (útsorfák)\nTilia cordata - Kislevelű hárs, SF, Szgy., 12/14",8,"db",null,null,{"$f":"ROUND(D492*F492,0)","v":0},{"$f":"ROUND(D492*G492, 0)","v":0}]
[]
[null,null,"Parkoló építés  összesen:",{"$nulls":4},{"$f":"SUM(H427:H492)","v":0},{"$f":"SUM(I427:I492)","v":0}]
[]
[null,null,"Járda építése"]
[]
["1.","M/62-003-008.1-0618313","Járdaburkolat készítése 6 cm vtg. Frühwald classic szürke térkőből kiékelve, szegéllyel,  alatta 4 cm tömörített ágyazókavics,12 cm vtg. CKT,15 cm tömörített kőzuzakék feltöltés,1 rtg. geotextilia, előtömörített talaj.",0,"m2",null,null,{"$f":"ROUND(D498*F498,0)","v":0},{"$f":"ROUND(D498*G498,0)","v":0}]
[null,null,"Járda építése összesen:",{"$nulls":4},{"$f":"SUM(H498)","v":0},{"$f":"SUM(I498)","v":0}]
[]
[null,null,"Ivókút telepítése"]
[]
["1.","92-003-001.2.6-0345042","Kerti fém építmények,\nszabadtéri berendezések,\nivókút elhelyezése\nB&K kültéri ivókút rozsdamentes acélból, időzített nyomógombos csapteleppel, Cikkszám: BK01483",2,"db",null,null,{"$f":"ROUND(D503*F503,0)","v":0},{"$f":"ROUND(D503*G503,0)","v":0}]
[null,null,"Ivókút telepítése összesen:",{"$nulls":4},{"$f":"SUM(H503)","v":0},{"$f":"SUM(I503)","v":0}]